[Event "SVK Amateur-ch 2020"]
[Site "Topolcany"]
[Date "2020.07.10"]
[Round "1.26"]
[White "Panda, Barnabas"]
[Black "Nikanova, Ekaterina"]
[Result "0-1"]
[ECO "A41"]
[WhiteElo "1741"]
[BlackElo "2116"]
[Annotator "ChessBase"]
[PlyCount "76"]
[EventDate "2020.07.10"]
[EventType "swiss"]
[EventCountry "SVK"]
[SourceTitle "playchess.com"]
[Source "ChessBase"]
[SourceQuality "1"]
[TimeControl "3600+30"]

1. d4 {[%emt 0:00:00]} d6 {[%emt 0:00:00]} 2. c4 {[%emt 0:00:35]} e5 {[%emt 0:00:21]} 3. Nc3 {[%emt 0:02:44]} exd4 {[%emt 0:00:47]} 4. Qxd4 {[%emt 0:00:29]} Nc6 {[%emt 0:00:09]} 5. Qd1 {[%emt 0:01:22]} g6 {[%emt 0:06:58]} 6. Nf3 {[%emt 0:05:43]} Bg7 {[%emt 0:02:20]} 7. Bg5 {[%emt 0:04:36]} Nf6 {[%emt 0:04:17]} 8. e3 {[%emt 0:03:59]} h6 {[%emt 0:00:11]} 9. Bh4 {[%emt 0:02:23]} O-O {[%emt 0:07:08]} 10. Be2 {[%emt 0:03:20]} Be6 {[%emt 0:03:51]} 11. O-O {[%emt 0:01:07]} g5 {[%emt 0:01:39]} 12. Bg3 {[%emt 0:00:56]} Nh5 {[%emt 0:00:42]} 13. Nd4 {[%emt 0:07:11]} Nxg3 {[%emt 0:00:07]} 14. hxg3 {[%emt 0:00:15]} Nxd4 {[%emt 0:04:34]} 15. exd4 {[%emt 0:00:13]} d5 {[%emt 0:03:03]} 16. cxd5 {[%emt 0:07:00]} Bxd5 {[%emt 0:00:05]} 17. Rc1 {[%emt 0:00:24]} c6 {[%emt 0:01:39]} 18. Qd2 {[%emt 0:04:59]} Qd6 {[%emt 0:03:36]} 19. f4 {[%emt 0:04:42]} Rad8 {[%emt 0:03:35]} 20. Rcd1 {[%emt 0:05:22]} Be6 {[%emt 0:04:38]} 21. f5 {[%emt 0:02:53]} Bc8 {[%emt 0:11:23]} 22. Rf3 {[%emt 0:05:25]} Qxd4+ {[%emt 0:04:31]} 23. Qxd4 {[%emt 0:00:20]} Bxd4+ {[%emt 0:00:04]} 24. Kf1 {[%emt 0:01:58]} Bxc3 {[%emt 0:00:09]} 25. bxc3 {[%emt 0:00:07]} Rxd1+ {[%emt 0:00:59]} 26. Bxd1 {[%emt 0:00:01]} Rd8 {[%emt 0:00:48]} 27. Bc2 {[%emt 0:01:17]} b6 {[%emt 0:03:14]} 28. Ke1 {[%emt 0:01:33]} Kg7 {[%emt 0:01:03]} 29. f6+ {[%emt 0:01:27]} Kf8 {[%emt 0:00:30]} 30. Rd3 {[%emt 0:01:24]} Rxd3 {[%emt 0:00:13]} 31. Bxd3 {[%emt 0:00:01]} Be6 {[%emt 0:00:24]} 32. a3 {[%emt 0:00:40]} Ke8 {[%emt 0:00:04]} 33. Kf2 {[%emt 0:00:30]} Kd7 {[%emt 0:00:04]} 34. Ke3 {[%emt 0:00:31]} Kd6 {[%emt 0:00:05]} 35. Be4 {[%emt 0:01:22]} c5 {[%emt 0:01:48]} 36. Bf3 {[%emt 0:00:33]} Ke5 {[%emt 0:00:07]} 37. Bb7 {[%emt 0:00:15]} Kxf6 {[%emt 0:01:02]} 38. Ke4 {[%emt 0:00:16]} Ke7 {[%emt 0:00:14]} 0-1

[Event "SVK Amateur-ch 2020"]
[Site "Topolcany"]
[Date "2020.07.10"]
[Round "2.1"]
[White "Stevik Patrik ml."]
[Black "Rabovszky Gyorgy"]
[Result "1-0"]
[ECO "A01"]
[WhiteElo "2047"]
[BlackElo "1716"]
[Annotator "ChessBase"]
[PlyCount "74"]
[EventDate "2020.07.10"]
[EventType "swiss"]
[EventCountry "SVK"]
[SourceTitle "playchess.com"]
[Source "ChessBase"]
[SourceQuality "1"]
[TimeControl "3600+30"]

1. b3 {[%emt 0:00:00]} e5 {[%emt 0:00:46]} 2. Bb2 {[%emt 0:00:00]} Nc6 {[%emt 0:00:19]} 3. e3 {[%emt 0:00:06]} Nf6 {[%emt 0:01:14]} 4. Nf3 {[%emt 0:00:14]} d6 {[%emt 0:01:09]} 5. d4 {[%emt 0:00:54]} exd4 {[%emt 0:00:19]} 6. exd4 {[%emt 0:00:51]} Bg4 {[%emt 0:03:56]} 7. Be2 {[%emt 0:01:09]} Be7 {[%emt 0:03:13]} 8. O-O {[%emt 0:01:41]} O-O {[%emt 0:00:47]} 9. c4 {[%emt 0:01:00]} Re8 {[%emt 0:02:41]} 10. d5 {[%emt 0:01:13]} Bxf3 {[%emt 0:00:29]} 11. Bxf3 {[%emt 0:00:17]} Ne5 {[%emt 0:00:09]} 12. Be2 {[%emt 0:00:54]} Qd7 {[%emt 0:02:59]} 13. h3 {[%emt 0:01:45]} Ne4 {[%emt 0:07:21]} 14. Nd2 {[%emt 0:04:08]} Nxd2 {[%emt 0:06:30]} 15. Qxd2 {[%emt 0:00:56]} Ng6 {[%emt 0:00:34]} 16. Bd3 {[%emt 0:01:18]} h6 {[%emt 0:00:33]} 17. Qc2 {[%emt 0:00:56]} Ne5 {[%emt 0:03:52]} 18. Bf5 {[%emt 0:01:34]} Qd8 {[%emt 0:00:01]} 19. f4 {[%emt 0:01:07]} Nd7 {[%emt 0:00:22]} 20. Rae1 {[%emt 0:00:39]} Bh4 {[%emt 0:01:31]} 21. Rxe8+ {[%emt 0:01:24]} Qxe8 {[%emt 0:00:03]} 22. Qd3 {[%emt 0:01:27]} g6 {[%emt 0:02:40]} 23. Bxd7 {[%emt 0:01:17]} Qxd7 {[%emt 0:03:09]} 24. Qc3 {[%emt 0:00:06]} f6 {[%emt 0:03:41]} 25. g3 {[%emt 0:00:30]} Qxh3 {[%emt 0:00:30]} 26. gxh4 {[%emt 0:00:30]} Qg4+ {[%emt 0:00:30]} 27. Kf2 {[%emt 0:01:28]} Re8 {[%emt 0:00:36]} 28. Qf3 {[%emt 0:00:20]} Qxh4+ {[%emt 0:00:43]} 29. Kg2 {[%emt 0:00:54]} f5 {[%emt 0:03:54]} 30. Qg3 {[%emt 0:03:08]} Qh5 {[%emt 0:02:30]} 31. Rf2 {[%emt 0:01:17]} Re1 {[%emt 0:01:20]} 32. Rf1 {[%emt 0:03:19]} Re2+ {[%emt 0:00:13]} 33. Rf2 {[%emt 0:00:22]} Re1 {[%emt 0:00:08]} 34. Qf3 {[%emt 0:04:13]} Qh1+ {[%emt 0:07:22]} 35. Kg3 {[%emt 0:00:05]} Rg1+ {[%emt 0:05:34]} 36. Rg2 {[%emt 0:00:59]} h5 {[%emt 0:00:31]} 37. Qf2 {[%emt 0:13:22]} h4+ {[%emt 0:03:29]} 1-0

[Event "SVK Amateur-ch 2020"]
[Site "Topolcany"]
[Date "2020.07.10"]
[Round "2.2"]
[White "Wallenfels Tomas"]
[Black "Nadzamova, Viktoria"]
[Result "0-1"]
[ECO "A46"]
[WhiteElo "1000"]
[BlackElo "2046"]
[Annotator "ChessBase"]
[PlyCount "58"]
[EventDate "2020.07.10"]
[EventType "swiss"]
[EventCountry "SVK"]
[SourceTitle "playchess.com"]
[Source "ChessBase"]
[SourceQuality "1"]
[TimeControl "3600+30"]

1. Nf3 {[%emt 0:00:00]} c5 {[%emt 0:00:00]} 2. d4 {[%emt 0:00:01]} cxd4 {[%emt 0:00:06]} 3. Nxd4 {[%emt 0:00:24]} Nf6 {[%emt 0:00:35]} 4. Nc3 {[%emt 0:00:50]} e6 {[%emt 0:00:18]} 5. Bg5 {[%emt 0:00:36]} Be7 {[%emt 0:00:35]} 6. e3 {[%emt 0:01:08]} Nc6 {[%emt 0:00:26]} 7. Bxf6 {[%emt 0:02:57]} Bxf6 {[%emt 0:00:17]} 8. Qd2 {[%emt 0:00:58]} a6 {[%emt 0:00:36]} 9. O-O-O {[%emt 0:00:32]} O-O {[%emt 0:00:32]} 10. Ne4 {[%emt 0:01:48]} d5 {[%emt 0:01:27]} 11. Nxc6 {[%emt 0:02:09]} bxc6 {[%emt 0:00:29]} 12. Nxf6+ {[%emt 0:04:47]} Qxf6 {[%emt 0:00:20]} 13. g3 {[%emt 0:03:51]} Rb8 {[%emt 0:00:30]} 14. Qd4 {[%emt 0:01:31]} e5 {[%emt 0:01:37]} 15. Qa7 {[%emt 0:03:13]} Bg4 {[%emt 0:02:00]} 16. Rd2 {[%emt 0:01:56]} Rfc8 {[%emt 0:03:12]} 17. Bxa6 {[%emt 0:01:42]} Ra8 {[%emt 0:00:15]} 18. Qb6 {[%emt 0:04:02]} Rcb8 {[%emt 0:00:23]} 19. Qc7 {[%emt 0:01:46]} Qd8 {[%emt 0:05:35]} 20. Qxc6 {[%emt 0:02:53]} Rb6 {[%emt 0:00:16]} 21. Qxd5 {[%emt 0:01:38]} Qxd5 {[%emt 0:00:11]} 22. Rxd5 {[%emt 0:00:12]} Bf3 {[%emt 0:00:30]} 23. Rhd1 {[%emt 0:02:13]} Bxd1 {[%emt 0:00:14]} 24. Rxd1 {[%emt 0:02:25]} Rbxa6 {[%emt 0:00:30]} 25. Rd5 {[%emt 0:00:30]} f6 {[%emt 0:00:18]} 26. a3 {[%emt 0:00:49]} Ra4 {[%emt 0:00:26]} 27. Rd3 {[%emt 0:00:36]} h5 {[%emt 0:00:16]} 28. b4 {[%emt 0:00:16]} Rxa3 {[%emt 0:00:09]} 29. Rxa3 {[%emt 0:00:13]} Rxa3 {[%emt 0:00:07]} 0-1

[Event "SVK Amateur-ch 2020"]
[Site "Topolcany"]
[Date "2020.07.10"]
[Round "2.3"]
[White "Brnusak, Tomas"]
[Black "Malinovsky Jozef"]
[Result "1-0"]
[ECO "A05"]
[WhiteElo "2028"]
[BlackElo "1698"]
[Annotator "ChessBase"]
[PlyCount "101"]
[EventDate "2020.07.10"]
[EventType "swiss"]
[EventCountry "SVK"]
[SourceTitle "playchess.com"]
[Source "ChessBase"]
[SourceQuality "1"]
[TimeControl "3600+30"]

1. Nf3 {[%emt 0:00:00]} Nc6 {[%emt 0:00:34]} 2. g3 {[%emt 0:00:00]} Nf6 {[%emt 0:00:45]} 3. Bg2 {[%emt 0:00:00]} e5 {[%emt 0:01:02]} 4. d3 {[%emt 0:00:04]} Be7 {[%emt 0:01:11]} 5. c4 {[%emt 0:00:50]} e4 {[%emt 0:02:09]} 6. dxe4 {[%emt 0:02:06]} Nxe4 {[%emt 0:00:02]} 7. O-O {[%emt 0:00:54]} d6 {[%emt 0:02:23]} 8. Nd4 {[%emt 0:01:22]} f5 {[%emt 0:02:24]} 9. Nc3 {[%emt 0:04:18]} Nxc3 {[%emt 0:01:05]} 10. bxc3 {[%emt 0:00:08]} Nxd4 {[%emt 0:02:12]} 11. cxd4 {[%emt 0:00:11]} O-O {[%emt 0:00:48]} 12. Qb3 {[%emt 0:02:16]} Rb8 {[%emt 0:02:09]} 13. Bb2 {[%emt 0:01:16]} Kh8 {[%emt 0:00:58]} 14. Rfe1 {[%emt 0:01:32]} Bf6 {[%emt 0:02:06]} 15. e4 {[%emt 0:00:56]} fxe4 {[%emt 0:00:32]} 16. Bxe4 {[%emt 0:00:10]} Bd7 {[%emt 0:05:17]} 17. Qc2 {[%emt 0:01:21]} h6 {[%emt 0:00:23]} 18. Re3 {[%emt 0:02:58]} b5 {[%emt 0:02:12]} 19. c5 {[%emt 0:01:57]} dxc5 {[%emt 0:01:48]} 20. dxc5 {[%emt 0:01:01]} Bxb2 {[%emt 0:00:30]} 21. Qxb2 {[%emt 0:00:50]} Qf6 {[%emt 0:00:30]} 22. Rb1 {[%emt 0:01:05]} Qxb2 {[%emt 0:01:43]} 23. Rxb2 {[%emt 0:00:06]} a6 {[%emt 0:02:05]} 24. Rd2 {[%emt 0:04:59]} Bh3 {[%emt 0:03:47]} 25. Ra3 {[%emt 0:02:32]} Rf6 {[%emt 0:02:08]} 26. c6 {[%emt 0:00:50]} Ra8 {[%emt 0:01:00]} 27. Rxa6 {[%emt 0:00:15]} Rff8 {[%emt 0:00:41]} 28. Rxa8 {[%emt 0:01:02]} Rxa8 {[%emt 0:00:02]} 29. Rb2 {[%emt 0:02:09]} g5 {[%emt 0:03:14]} 30. f3 {[%emt 0:03:07]} b4 {[%emt 0:04:19]} 31. Rxb4 {[%emt 0:02:31]} Rxa2 {[%emt 0:00:17]} 32. Rb7 {[%emt 0:02:04]} Rg2+ {[%emt 0:00:35]} 33. Kf1 {[%emt 0:00:10]} Rxg3+ {[%emt 0:00:33]} 34. Ke1 {[%emt 0:00:06]} Rg1+ {[%emt 0:03:02]} 35. Kd2 {[%emt 0:00:22]} Rg2+ {[%emt 0:00:06]} 36. Ke3 {[%emt 0:00:09]} Rxh2 {[%emt 0:00:02]} 37. Rxc7 {[%emt 0:00:13]} Bf1 {[%emt 0:02:45]} 38. Ra7 {[%emt 0:01:10]} Re2+ {[%emt 0:05:00]} 39. Kd4 {[%emt 0:00:15]} Rd2+ {[%emt 0:05:50]} 40. Kc5 {[%emt 0:01:30]} Bh3 {[%emt 0:02:44]} 41. Rh7+ {[%emt 0:00:14]} Kg8 {[%emt 0:00:01]} 42. Rxh6 {[%emt 0:00:26]} Bc8 {[%emt 0:01:03]} 43. Rg6+ {[%emt 0:00:11]} Kf7 {[%emt 0:00:37]} 44. Rxg5 {[%emt 0:00:09]} Ra2 {[%emt 0:01:25]} 45. Kb6 {[%emt 0:00:57]} Rb2+ {[%emt 0:00:28]} 46. Rb5 {[%emt 0:00:24]} Rd2 {[%emt 0:02:56]} 47. Bf5 {[%emt 0:00:39]} Bxf5 {[%emt 0:01:14]} 48. Rxf5+ {[%emt 0:00:07]} Ke6 {[%emt 0:00:21]} 49. c7 {[%emt 0:00:59]} Kxf5 {[%emt 0:00:57]} 50. c8=Q+ {[%emt 0:00:12]} Kf4 {[%emt 0:00:50]} 51. Qc1 {[%emt 0:00:14]} 1-0

[Event "SVK Amateur-ch 2020"]
[Site "Topolcany"]
[Date "2020.07.10"]
[Round "2.4"]
[White "Voros Gellert"]
[Black "Majzlan, Blazej"]
[Result "1-0"]
[ECO "B22"]
[WhiteElo "2182"]
[BlackElo "1647"]
[Annotator "RC"]
[PlyCount "71"]
[EventDate "2020.07.10"]
[EventType "swiss"]
[EventCountry "SVK"]
[SourceTitle "playchess.com"]
[Source "ChessBase"]
[SourceQuality "1"]
[TimeControl "3600+30"]

1. e4 {[%emt 0:00:00]} c5 {[%emt 0:00:00]} 2. c3 {[%emt 0:00:00]} d5 {[%emt 0:00:00]} 3. exd5 {[%emt 0:00:00]} Qxd5 {[%emt 0:00:00]} 4. d4 {[%emt 0:00:00]} e6 {[%emt 0:01:32]} 5. Nf3 {[%emt 0:00:02]} Nf6 {[%emt 0:00:22]} 6. Bd3 {[%emt 0:00:36]} Nc6 {[%emt 0:02:37]} 7. O-O {[%emt 0:01:30]} Be7 {[%emt 0:02:35]} 8. Be3 {[%emt 0:00:28]} c4 {[%emt 0:05:09]} 9. Be2 {[%emt 0:01:41]} O-O {[%emt 0:03:48]} 10. Nbd2 {[%emt 0:00:31]} Na5 {[%emt 0:09:36]} 11. Ne5 {[%emt 0:00:38]} Nc6 {[%emt 0:10:41]} 12. Ndxc4 {[%emt 0:05:13]} Nxe5 {[%emt 0:09:29]} 13. Nxe5 {[%emt 0:00:21]} Qa5 {[%emt 0:00:34]} 14. Bf3 {[%emt 0:01:32]} Nd5 {[%emt 0:01:28]} 15. Bd2 {[%emt 0:00:30]} Qd8 {[%emt 0:01:30]} 16. c4 {[%emt 0:01:05]} Nf6 {[%emt 0:02:17]} 17. Bc3 {[%emt 0:00:54]} Rb8 {[%emt 0:03:07]} 18. b4 {[%emt 0:00:45]} Nd7 {[%emt 0:00:28]} 19. Nd3 {[%emt 0:02:29]} Qc7 {[%emt 0:00:58]} 20. c5 {[%emt 0:01:39]} Nf6 {[%emt 0:01:39]} 21. b5 {[%emt 0:01:39]} Nd5 {[%emt 0:00:57]} 22. Bxd5 {[%emt 0:00:41]} exd5 {[%emt 0:00:01]} 23. Bd2 {[%emt 0:00:29]} Bd7 {[%emt 0:04:16]} 24. Bf4 {[%emt 0:00:19]} Qa5 {[%emt 0:00:31]} 25. Bxb8 {[%emt 0:00:37]} Rxb8 {[%emt 0:00:00]} 26. a4 {[%emt 0:00:29]} Bf6 {[%emt 0:00:00]} 27. Ne5 {[%emt 0:01:09]} Bxe5 {[%emt 0:00:54]} 28. dxe5 {[%emt 0:00:08]} Be6 {[%emt 0:02:21]} 29. Qd4 {[%emt 0:01:54]} Qd8 {[%emt 0:01:43]} 30. a5 {[%emt 0:01:06]} h5 {[%emt 0:00:10]} 31. Rfe1 {[%emt 0:00:00]} Qe8 {[%emt 0:00:26]} 32. c6 {[%emt 0:00:00]} bxc6 {[%emt 0:06:51]} 33. bxc6 {[%emt 0:48:05]} Qe7 {[%emt 0:00:30]} 34. c7 {[%emt 0:00:30]} Qb4 {[%emt 0:00:30]} 35. c8=Q+ {[%emt 0:00:30]} Bxc8 {[%emt 0:00:30]} 36. Rec1 {[%emt 0:00:30]} 1-0

[Event "SVK Amateur-ch 2020"]
[Site "Topolcany"]
[Date "2020.07.10"]
[Round "2.5"]
[White "Podoba, Milan"]
[Black "Takacs, Laszlo"]
[Result "0-1"]
[ECO "B22"]
[WhiteElo "2023"]
[BlackElo "2187"]
[Annotator "RC"]
[PlyCount "96"]
[EventDate "2020.07.10"]
[EventType "swiss"]
[EventCountry "SVK"]
[SourceTitle "playchess.com"]
[Source "ChessBase"]
[SourceQuality "1"]
[TimeControl "3600+30"]

1. e4 {[%emt 0:00:00]} c5 {[%emt 0:00:00]} 2. c3 {[%emt 0:00:00]} d5 {[%emt 0:00:00]} 3. exd5 {[%emt 0:00:00]} Qxd5 {[%emt 0:00:00]} 4. d4 {[%emt 0:00:23]} Bf5 {[%emt 0:00:05]} 5. Nf3 {[%emt 0:00:42]} e6 {[%emt 0:00:07]} 6. Be2 {[%emt 0:00:47]} Nf6 {[%emt 0:00:14]} 7. O-O {[%emt 0:01:49]} Be7 {[%emt 0:01:27]} 8. dxc5 {[%emt 0:05:35]} Qxd1 {[%emt 0:02:25]} 9. Rxd1 {[%emt 0:00:16]} Bxc5 {[%emt 0:01:16]} 10. Nd4 {[%emt 0:07:05]} O-O {[%emt 0:03:40]} 11. Be3 {[%emt 0:05:00]} Bg4 {[%emt 0:07:08]} 12. f3 {[%emt 0:06:32]} Bh5 {[%emt 0:02:52]} 13. Nd2 {[%emt 0:01:21]} Nc6 {[%emt 0:02:12]} 14. N2b3 {[%emt 0:01:40]} Bb6 {[%emt 0:00:19]} 15. Bf2 {[%emt 0:02:47]} Nxd4 {[%emt 0:05:01]} 16. Bxd4 {[%emt 0:00:53]} Bxd4+ {[%emt 0:00:12]} 17. Rxd4 {[%emt 0:01:04]} e5 {[%emt 0:00:45]} 18. Rd2 {[%emt 0:03:03]} Rac8 {[%emt 0:10:02]} 19. Rad1 {[%emt 0:02:27]} a6 {[%emt 0:02:55]} 20. Kf1 {[%emt 0:01:14]} Rfe8 {[%emt 0:00:42]} 21. Na5 {[%emt 0:01:55]} Rc7 {[%emt 0:00:58]} 22. Rd8 {[%emt 0:01:11]} Kf8 {[%emt 0:00:52]} 23. Rxe8+ {[%emt 0:05:58]} Kxe8 {[%emt 0:00:46]} 24. Nc4 {[%emt 0:00:43]} Re7 {[%emt 0:04:23]} 25. Nd6+ {[%emt 0:03:20]} Kf8 {[%emt 0:00:05]} 26. Nc8 {[%emt 0:01:55]} Rd7 {[%emt 0:03:48]} 27. Rxd7 {[%emt 0:01:23]} Nxd7 {[%emt 0:00:05]} 28. Nd6 {[%emt 0:00:40]} b5 {[%emt 0:00:14]} 29. a4 {[%emt 0:02:27]} bxa4 {[%emt 0:01:08]} 30. Bxa6 {[%emt 0:00:09]} Nc5 {[%emt 0:00:58]} 31. Bb5 {[%emt 0:00:54]} Bg6 {[%emt 0:00:24]} 32. Ne4 {[%emt 0:03:20]} Bxe4 {[%emt 0:02:27]} 33. fxe4 {[%emt 0:00:04]} h5 {[%emt 0:04:24]} 34. Ke2 {[%emt 0:00:24]} g6 {[%emt 0:00:25]} 35. Bc6 {[%emt 0:01:05]} Ke7 {[%emt 0:00:25]} 36. Ke3 {[%emt 0:00:38]} f5 {[%emt 0:00:43]} 37. g3 {[%emt 0:02:19]} Kf6 {[%emt 0:01:58]} 38. h4 {[%emt 0:01:54]} f4+ {[%emt 0:02:16]} 39. gxf4 {[%emt 0:00:39]} exf4+ {[%emt 0:00:06]} 40. Kd4 {[%emt 0:03:15]} Ne6+ {[%emt 0:02:34]} 41. Kd3 {[%emt 0:00:34]} Ke5 {[%emt 0:00:51]} 42. Be8 {[%emt 0:01:17]} g5 {[%emt 0:04:19]} 43. hxg5 {[%emt 0:00:05]} h4 {[%emt 0:00:09]} 44. Ke2 {[%emt 0:01:36]} Nxg5 {[%emt 0:00:39]} 45. Bxa4 {[%emt 0:00:25]} f3+ {[%emt 0:00:19]} 46. Kf2 {[%emt 0:00:34]} Kf4 {[%emt 0:00:36]} 47. Bd7 {[%emt 0:01:16]} Nxe4+ {[%emt 0:00:29]} 48. Kf1 {[%emt 0:00:35]} Ke5 0-1

[Event "SVK Amateur-ch 2020"]
[Site "Topolcany"]
[Date "2020.07.10"]
[Round "2.5"]
[White "Panda Gyorgy"]
[Black "Pejko Otomar"]
[Result "1/2-1/2"]
[ECO "A52"]
[WhiteElo "1773"]
[BlackElo "2138"]
[Annotator "ChessBase"]
[PlyCount "55"]
[EventDate "2020.07.10"]
[EventType "swiss"]
[EventCountry "SVK"]
[SourceTitle "playchess.com"]
[Source "ChessBase"]
[SourceQuality "1"]
[TimeControl "3600+30"]

1. d4 {[%emt 0:00:00]} Nf6 {[%emt 0:00:00]} 2. c4 {[%emt 0:00:00]} e5 {[%emt 0:00:00]} 3. dxe5 {[%emt 0:00:11]} Ng4 {[%emt 0:00:00]} 4. e3 {[%emt 0:00:33]} Nxe5 {[%emt 0:00:00]} 5. Nf3 {[%emt 0:01:48]} Nbc6 {[%emt 0:00:56]} 6. a3 {[%emt 0:00:26]} Be7 {[%emt 0:01:33]} 7. Be2 {[%emt 0:00:19]} d6 {[%emt 0:02:05]} 8. O-O {[%emt 0:00:26]} Be6 {[%emt 0:01:22]} 9. Qc2 {[%emt 0:01:04]} O-O {[%emt 0:03:47]} 10. b4 {[%emt 0:01:44]} Nxf3+ {[%emt 0:01:09]} 11. Bxf3 {[%emt 0:00:14]} Bf6 {[%emt 0:00:22]} 12. Ra2 {[%emt 0:00:56]} Qc8 {[%emt 0:01:46]} 13. Nd2 {[%emt 0:01:17]} a5 {[%emt 0:09:35]} 14. b5 {[%emt 0:03:04]} Ne5 {[%emt 0:00:02]} 15. Be2 {[%emt 0:00:00]} Nd7 {[%emt 0:02:37]} 16. Ne4 {[%emt 0:01:25]} Be7 {[%emt 0:00:10]} 17. Bb2 {[%emt 0:03:56]} f5 {[%emt 0:03:19]} 18. Ng3 {[%emt 0:10:16]} g6 {[%emt 0:12:07]} 19. Bd4 {[%emt 0:01:29]} Bf6 {[%emt 0:05:29]} 20. Rb2 {[%emt 0:01:47]} b6 {[%emt 0:07:49]} 21. Bf3 {[%emt 0:02:04]} Rb8 {[%emt 0:00:31]} 22. Ne2 {[%emt 0:00:43]} Be5 {[%emt 0:09:29]} 23. Nf4 {[%emt 0:02:37]} Bf7 {[%emt 0:01:51]} 24. Nd5 {[%emt 0:00:38]} Bxd5 {[%emt 0:00:58]} 25. Bxd5+ {[%emt 0:00:33]} Kg7 {[%emt 0:00:03]} 26. Qc3 {[%emt 0:01:23]} Bxd4 {[%emt 0:02:06]} 27. Qxd4+ {[%emt 0:00:16]} Nf6 {[%emt 0:00:06]} 28. Bc6 {[%emt 0:07:14]} 1/2-1/2

[Event "SVK Amateur-ch 2020"]
[Site "Topolcany"]
[Date "2020.07.10"]
[Round "2.6"]
[White "Szabo Ervin"]
[Black "Sarkozi Szabolcs"]
[Result "0-1"]
[ECO "A83"]
[WhiteElo "1809"]
[BlackElo "2123"]
[Annotator "ChessBase"]
[PlyCount "57"]
[EventDate "2020.07.10"]
[EventType "swiss"]
[EventCountry "SVK"]
[SourceTitle "playchess.com"]
[Source "ChessBase"]
[SourceQuality "1"]
[TimeControl "3600+30"]

1. d4 {[%emt 0:00:00]} f5 {[%emt 0:00:00]} 2. e4 {[%emt 0:00:00]} fxe4 {[%emt 0:00:00]} 3. Nc3 {[%emt 0:00:00]} Nf6 {[%emt 0:00:00]} 4. Bg5 {[%emt 0:00:06]} Nc6 {[%emt 0:00:00]} 5. Bxf6 {[%emt 0:12:29]} exf6 {[%emt 0:00:04]} 6. d5 {[%emt 0:02:27]} Ne5 {[%emt 0:01:11]} 7. Nxe4 {[%emt 0:02:01]} f5 {[%emt 0:01:51]} 8. Nc3 {[%emt 0:05:06]} d6 {[%emt 0:02:23]} 9. Qd4 {[%emt 0:09:19]} Be7 {[%emt 0:00:44]} 10. O-O-O {[%emt 0:13:43]} O-O {[%emt 0:00:42]} 11. Kb1 {[%emt 0:06:46]} Bf6 {[%emt 0:00:28]} 12. Qd2 {[%emt 0:02:01]} Bd7 {[%emt 0:00:55]} 13. f4 {[%emt 0:00:34]} Ng4 {[%emt 0:01:02]} 14. Nh3 {[%emt 0:01:21]} Re8 {[%emt 0:02:12]} 15. Bd3 {[%emt 0:05:32]} b5 {[%emt 0:01:20]} 16. Rde1 {[%emt 0:02:14]} b4 {[%emt 0:01:37]} 17. Nd1 {[%emt 0:00:10]} a5 {[%emt 0:00:38]} 18. Nhf2 {[%emt 0:00:41]} Nxf2 {[%emt 0:00:53]} 19. Qxf2 {[%emt 0:00:40]} a4 {[%emt 0:00:42]} 20. Re2 {[%emt 0:00:32]} Rxe2 {[%emt 0:03:57]} 21. Qxe2 {[%emt 0:00:18]} Qb8 {[%emt 0:01:32]} 22. Re1 {[%emt 0:00:53]} b3 {[%emt 0:02:29]} 23. a3 {[%emt 0:01:04]} bxc2+ {[%emt 0:00:50]} 24. Qxc2 {[%emt 0:00:03]} Qb6 {[%emt 0:15:49]} 25. Bxf5 {[%emt 0:00:42]} Bxf5 {[%emt 0:00:15]} 26. Qxf5 {[%emt 0:00:02]} Rb8 {[%emt 0:00:10]} 27. Qe6+ {[%emt 0:00:23]} Kf8 {[%emt 0:00:51]} 28. Qe3 {[%emt 0:00:31]} Qb5 {[%emt 0:01:28]} 29. Nc3 {[%emt 0:00:24]} 0-1

[Event "SVK Amateur-ch 2020"]
[Site "Topolcany"]
[Date "2020.07.10"]
[Round "2.7"]
[White "Bango, Lukas"]
[Black "Dziewonski, Dariusz"]
[Result "0-1"]
[ECO "A04"]
[WhiteElo "2153"]
[BlackElo "2029"]
[Annotator "ChessBase"]
[PlyCount "118"]
[EventDate "2020.07.10"]
[EventType "swiss"]
[EventCountry "SVK"]
[SourceTitle "playchess.com"]
[Source "ChessBase"]
[SourceQuality "1"]
[TimeControl "3600+30"]

1. Nf3 {[%emt 0:00:00]} e6 {[%emt 0:00:00]} 2. g3 {[%emt 0:00:00]} d5 {[%emt 0:00:07]} 3. Bg2 {[%emt 0:00:00]} Nf6 {[%emt 0:00:08]} 4. O-O {[%emt 0:00:18]} Be7 {[%emt 0:00:14]} 5. d3 {[%emt 0:00:17]} O-O {[%emt 0:00:31]} 6. Nbd2 {[%emt 0:00:10]} b6 {[%emt 0:01:03]} 7. b3 {[%emt 0:00:39]} Bb7 {[%emt 0:00:33]} 8. Bb2 {[%emt 0:00:05]} Nbd7 {[%emt 0:00:46]} 9. c4 {[%emt 0:00:49]} c5 {[%emt 0:03:35]} 10. e3 {[%emt 0:02:35]} Rc8 {[%emt 0:02:41]} 11. Rc1 {[%emt 0:01:34]} h6 {[%emt 0:01:41]} 12. Rc2 {[%emt 0:01:33]} Re8 {[%emt 0:05:20]} 13. Qa1 {[%emt 0:02:25]} Bd6 {[%emt 0:07:17]} 14. Rfc1 {[%emt 0:05:13]} e5 {[%emt 0:03:14]} 15. cxd5 {[%emt 0:01:47]} Bxd5 {[%emt 0:05:56]} 16. Nc4 {[%emt 0:01:43]} Qe7 {[%emt 0:03:11]} 17. Rd2 {[%emt 0:12:13]} Bb8 {[%emt 0:04:49]} 18. d4 {[%emt 0:03:05]} cxd4 {[%emt 0:03:05]} 19. exd4 {[%emt 0:01:15]} Bxf3 {[%emt 0:12:20]} 20. Bxf3 {[%emt 0:00:26]} exd4 {[%emt 0:01:32]} 21. Bxd4 {[%emt 0:02:10]} Ne5 {[%emt 0:03:10]} 22. Nxe5 {[%emt 0:10:15]} Rxc1+ {[%emt 0:00:17]} 23. Qxc1 {[%emt 0:00:03]} Bxe5 {[%emt 0:00:06]} 24. Be3 {[%emt 0:00:57]} Rd8 {[%emt 0:02:27]} 25. Rxd8+ {[%emt 0:01:08]} Qxd8 {[%emt 0:00:05]} 26. Qc4 {[%emt 0:00:06]} Qc7 {[%emt 0:01:39]} 27. Qb5 {[%emt 0:01:40]} Bd6 {[%emt 0:02:20]} 28. Qf5 {[%emt 0:00:04]} Qd7 {[%emt 0:01:27]} 29. Qc2 {[%emt 0:02:17]} Qc7 {[%emt 0:00:22]} 30. Qb2 {[%emt 0:00:10]} Be5 {[%emt 0:00:30]} 31. Qe2 {[%emt 0:00:42]} Qc3 {[%emt 0:01:07]} 32. Qa6 {[%emt 0:01:23]} Qc7 {[%emt 0:00:21]} 33. Kg2 {[%emt 0:00:26]} Qb8 {[%emt 0:01:36]} 34. a4 {[%emt 0:02:07]} Qc7 {[%emt 0:00:53]} 35. Qb5 {[%emt 0:04:45]} Bd6 {[%emt 0:00:52]} 36. Bd4 {[%emt 0:00:26]} Bc5 {[%emt 0:00:53]} 37. Bxc5 {[%emt 0:05:10]} Qxc5 {[%emt 0:00:18]} 38. Qxc5 {[%emt 0:00:04]} bxc5 {[%emt 0:00:04]} 39. Kf1 {[%emt 0:00:20]} Kf8 {[%emt 0:01:02]} 40. Ke2 {[%emt 0:00:06]} Nd7 {[%emt 0:01:44]} 41. Bc6 {[%emt 0:04:15]} Ke7 {[%emt 0:00:08]} 42. Bxd7 {[%emt 0:01:57]} Kxd7 {[%emt 0:00:06]} 43. Kd3 {[%emt 0:00:01]} Kc6 {[%emt 0:00:32]} 44. Ke4 {[%emt 0:01:03]} Kd6 {[%emt 0:00:17]} 45. h4 {[%emt 0:02:00]} g6 {[%emt 0:00:56]} 46. h5 {[%emt 0:00:55]} Ke6 {[%emt 0:01:06]} 47. g4 {[%emt 0:01:19]} gxh5 {[%emt 0:00:14]} 48. gxh5 {[%emt 0:00:03]} f5+ {[%emt 0:00:25]} 49. Ke3 {[%emt 0:00:31]} Ke5 {[%emt 0:00:21]} 50. f4+ {[%emt 0:00:20]} Kd6 {[%emt 0:00:43]} 51. Kd2 {[%emt 0:00:41]} Kd5 {[%emt 0:00:17]} 52. Kd3 {[%emt 0:00:04]} a5 {[%emt 0:00:48]} 53. Ke3 {[%emt 0:02:19]} c4 {[%emt 0:00:22]} 54. bxc4+ {[%emt 0:00:12]} Kxc4 {[%emt 0:00:05]} 55. Kd2 {[%emt 0:00:02]} Kd4 {[%emt 0:00:07]} 56. Ke2 {[%emt 0:00:03]} Ke4 {[%emt 0:00:06]} 57. Kf2 {[%emt 0:00:07]} Kxf4 {[%emt 0:00:05]} 58. Kg2 {[%emt 0:00:02]} Kg5 {[%emt 0:00:06]} 59. Kg3 {[%emt 0:00:04]} Kxh5 {[%emt 0:00:08]} 0-1